bitfinex/quotes_SOLUSD_20241029
["timestamp","ask_amount","ask_price","bid_price","bid_amount"]
[1730218567711,5.74109404,181.81,181.78,18.35017534]
[1730218567910,39.37417534,181.85,181.8,18.35017534]
[1730218568216,29.58954633,181.85,181.8,18.35017534]
[1730218568741,18.35017534,181.82,181.78,18.35017534]
[1730218569337,18.35017534,181.84,181.79,18.35017534]
[1730218569926,11.23937099,181.85,181.75,18.35017534]
[1730218569927,18.35017534,181.8,181.75,18.35017534]
[1730218570121,18.35017534,181.78,181.73,18.35017534]
[1730218570334,18.35017534,181.75,181.7,24.40097534]
[1730218570544,18.35017534,181.77,181.73,18.35017534]
[1730218570715,18.35017534,181.78,181.73,18.35017534]
[1730218571234,18.35017534,181.76,181.71,18.35017534]
[1730218571436,18.35017534,181.77,181.72,18.35017534]
[1730218571832,18.35017534,181.77,181.73,23.776884]
[1730218573335,18.35017534,181.76,181.72,23.776884]
[1730218574717,18.35017534,181.76,181.71,42.12705934]
[1730218574914,18.35017534,181.78,181.73,18.35017534]
[1730218575130,18.35017534,181.79,181.74,18.35017534]
[1730218575444,18.35017534,181.79,181.75,18.35017534]
[1730218575653,40.12227534,181.81,181.76,18.35017534]
[1730218576016,18.35017534,181.81,181.76,18.35017534]
[1730218576216,23.85017534,181.82,181.77,18.35017534]
[1730218576517,18.35017534,181.81,181.76,18.35017534]
[1730218576717,18.35017534,181.77,181.73,18.35017534]
[1730218578231,30.0,181.76,181.73,18.35017534]
[1730218578746,30.0,181.76,181.73,23.776884]
[1730218579043,30.0,181.76,181.71,42.12705934]
[1730218579044,53.85197534,181.76,181.71,42.12705934]
[1730218579568,18.35017534,181.75,181.71,23.776884]
[1730218579734,30.0,181.76,181.72,18.35017534]
[1730218580736,48.35017534,181.76,181.72,18.35017534]
[1730218580936,48.35017534,181.76,181.71,42.12705934]
[1730218583251,30.0,181.76,181.72,18.35017534]
[1730218583443,48.35017534,181.76,181.71,42.12705934]
[1730218583645,18.35017534,181.76,181.71,42.12705934]
[1730218584433,29.59327301,181.78,181.73,18.35017534]
[1730218585148,24.09207301,181.78,181.73,18.35017534]
[1730218585736,18.35017534,181.77,181.73,23.776884]
[1730218586461,18.35017534,181.76,181.73,23.776884]
[1730218587853,18.35017534,181.76,181.72,23.776884]
[1730218588050,18.35017534,181.75,181.7,18.35017534]
[1730218588245,18.35017534,181.74,181.69,18.35017534]
[1730218588654,11.45109857,181.74,181.69,11.45109857]
[1730218589343,5.74019096,181.76,181.67,11.45109857]
[1730218589344,11.45109857,181.72,181.67,11.45109857]
[1730218589659,11.45109857,181.72,181.68,11.45109857]
[1730218590158,11.45109857,181.73,181.65,15.6778]
[1730218590358,11.45109857,181.68,181.62,6.1654]
[1730218590549,11.45109857,181.68,181.61,8.59877389]
[1730218590550,11.45109857,181.66,181.61,11.45109857]
[1730218590751,11.45109857,181.67,181.63,11.45109857]
[1730218590957,5.5021,181.75,181.66,11.45109857]
[1730218591173,5.5021,181.75,181.63,0.1]
[1730218591664,11.45109857,181.71,181.67,11.45109857]
[1730218592157,11.45109857,181.72,181.67,11.45109857]
[1730218592546,18.32635285,181.72,181.67,18.32635285]
[1730218592752,23.82925285,181.73,181.68,18.32635285]
[1730218593548,18.32635285,181.73,181.69,18.32635285]
[1730218593763,18.32635285,181.75,181.71,18.32635285]
[1730218594070,18.32635285,181.75,181.7,18.32635285]
[1730218594755,18.32635285,181.74,181.7,18.32635285]
[1730218595177,18.32635285,181.73,181.68,18.32635285]
[1730218595467,18.32635285,181.74,181.69,18.32635285]
[1730218595852,21.36309096,181.76,181.72,18.32635285]
[1730218596053,21.36309096,181.76,181.65,0.1]
[1730218596054,5.74019096,181.76,181.73,18.32635285]
[1730218596474,5.74019096,181.76,181.72,18.32635285]
[1730218597066,5.74019096,181.76,181.73,18.32635285]
[1730218597272,5.74019096,181.76,181.67,23.876884]
[1730218597273,5.74019096,181.76,181.75,18.32635285]
[1730218597444,5.74019096,181.76,181.75,42.10323685]
[1730218597780,5.7379144,181.81,181.76,23.776884]
[1730218598088,18.32635285,181.8,181.75,18.32635285]
[1730218598284,24.06426725,181.81,181.76,18.32635285]
[1730218598574,24.06426725,181.81,181.72,23.776884]
[1730218598575,5.7379144,181.81,181.79,18.32635285]
[1730218599346,5.7379144,181.81,181.8,18.32635285]
[1730218599661,18.32635285,181.85,181.8,18.32635285]
[1730218599662,5.73665529,181.84,181.8,18.32635285]
[1730218600661,18.32635285,181.82,181.79,23.776884]
[1730218600861,18.32635285,181.81,181.76,18.32635285]
[1730218601069,18.32635285,181.81,181.77,23.776884]
[1730218602275,18.32635285,181.82,181.77,42.10323685]
[1730218602581,29.56250814,181.84,181.79,18.32635285]
[1730218602781,5.73665529,181.84,181.8,42.10323685]
[1730218602974,5.73665529,181.84,181.8,18.32635285]
[1730218603984,5.73665529,181.84,181.81,18.32635285]
[1730218605676,5.73665529,181.84,181.83,42.10323685]
[1730218605975,5.73643922,181.9,181.83,42.10323685]
[1730218606291,5.73643922,181.9,181.88,18.32635285]
[1730218606578,5.73643922,181.9,181.86,18.32635285]
[1730218606957,5.73643922,181.9,181.87,42.10323685]
[1730218607155,5.73643922,181.9,181.88,18.32635285]
[1730218607358,5.73643922,181.9,181.89,18.32635285]
[1730218607766,5.73643922,181.9,181.88,18.32635285]
[1730218607981,1.079227,182.0,181.9,23.776884]
[1730218608186,1.079227,182.0,181.96,18.32635285]
[1730218608384,24.06265251,181.99,181.94,18.32635285]
[1730218608568,18.32635285,181.98,181.95,23.776884]
[1730218608885,18.32635285,181.98,181.94,23.776884]
[1730218608886,23.82145285,181.98,181.94,23.776884]
[1730218609187,18.32635285,181.98,181.94,23.776884]
[1730218609391,29.55745251,181.99,181.94,42.10323685]
[1730218609594,18.32635285,181.97,181.93,23.776884]
[1730218609887,18.32635285,181.96,181.92,23.776884]
[1730218610567,5.73629966,181.99,181.95,42.10323685]
[1730218610982,18.32635285,181.98,181.95,23.776884]
[1730218611381,18.32635285,181.98,181.94,23.776884]
[1730218611592,18.32635285,181.97,181.94,23.776884]
[1730218611772,18.32635285,181.96,181.93,23.776884]
[1730218611973,18.32635285,181.96,181.92,23.776884]
[1730218612591,5.4951,181.98,181.9,18.32635285]
[1730218612592,18.32635285,181.95,181.9,18.32635285]
[1730218612887,18.32635285,181.94,181.89,18.32635285]
[1730218613400,18.32635285,181.93,181.88,18.32635285]
[1730218613567,18.32635285,181.91,181.87,6.4278]
[1730218613762,18.32635285,181.89,181.84,18.32635285]
[1730218613968,18.32635285,181.89,181.83,15.7877]
[1730218613969,18.32635285,181.88,181.83,34.11405285]
[1730218614779,18.32635285,181.89,181.84,18.32635285]
[1730218615400,18.32635285,181.87,181.84,23.776884]
[1730218615811,18.32635285,181.86,181.82,6.214]
[1730218616093,18.32635285,181.87,181.82,6.214]
[1730218616306,18.32635285,181.87,181.82,24.54035285]
[1730218616600,18.32635285,181.88,181.83,18.32635285]
[1730218616998,18.32635285,181.92,181.88,23.776884]
[1730218617199,18.32635285,181.93,181.9,23.776884]
[1730218617795,18.32635285,181.93,181.89,23.776884]
[1730218618405,18.32635285,181.93,181.89,42.10323685]
[1730218618707,24.0634593,181.95,181.9,18.32635285]
[1730218618882,18.32635285,181.94,181.91,23.776884]
[1730218619483,18.32635285,181.93,181.89,23.776884]
[1730218620305,18.32635285,181.94,181.89,42.10323685]
[1730218620884,18.32635285,181.93,181.89,23.776884]
[1730218621301,18.32635285,181.94,181.89,42.10323685]
[1730218622097,5.73710645,181.95,181.92,18.32635285]
[1730218622298,24.0634593,181.95,181.92,23.776884]
[1730218622513,5.73710645,181.95,181.94,38.42635285]
[1730218622688,1.079227,182.0,181.94,38.42635285]
[1730218622689,1.079227,182.0,181.95,23.876884]
[1730218622999,19.40557985,182.0,181.97,23.776884]
[1730218623202,1.079227,182.0,181.99,23.776884]
[1730218623587,1.079227,182.0,181.98,23.776884]
[1730218623792,1.079227,182.0,181.97,23.776884]
[1730218624297,19.40557985,182.0,181.96,23.776884]
[1730218624603,18.32635285,181.99,181.95,23.776884]
[1730218625186,18.32635285,181.98,181.95,23.776884]
[1730218625384,18.32635285,181.96,181.9,18.32635285]
[1730218625600,6.573727,182.0,181.91,18.32635285]
[1730218625803,19.40557985,182.0,181.95,18.32635285]
[1730218626011,18.32635285,181.98,181.9,0.1]
[1730218626410,18.32635285,181.97,181.92,18.32635285]
[1730218626709,18.32635285,181.98,181.94,18.32635285]
[1730218626905,18.32635285,181.99,181.95,23.776884]
[1730218627996,1.079227,182.0,181.95,23.776884]
[1730218627997,1.079227,182.0,181.98,18.32635285]
[1730218628195,1.079227,182.0,181.99,42.10323685]
[1730218628392,1.079227,182.0,181.99,23.776884]
[1730218629104,1.079227,182.0,181.97,23.776884]
[1730218629813,19.40557985,182.0,181.97,23.776884]
[1730218629999,18.32635285,181.98,181.97,23.776884]
[1730218630892,18.32635285,181.99,181.97,23.776884]
[1730218631516,1.079227,182.0,181.99,43.876884]
[1730218631716,5.73637071,182.05,182.03,23.776884]
[1730218632109,18.32635285,182.04,182.01,20.0]
[1730218632294,5.73637071,182.05,181.9,0.1]
[1730218632295,11.22937071,182.05,181.9,0.1]
[1730218632620,18.32635285,181.94,181.9,0.1]
[1730218632912,11.22937071,182.05,181.91,6.2663]
[1730218633119,18.32635285,181.96,181.91,6.1663]
[1730218633513,18.32635285,181.97,181.92,0.1]
[1730218633700,18.32635285,181.98,181.93,20.0]
[1730218634313,18.32635285,181.97,181.94,23.776884]
[1730218634896,18.32635285,181.95,181.94,23.776884]
[1730218635095,18.32635285,181.95,181.94,43.776884]
[1730218636024,18.32635285,181.95,181.88,16.14]
[1730218636209,18.32635285,181.89,181.88,16.14]
[1730218636596,18.32635285,181.89,181.86,6.6069]
[1730218636813,18.32635285,181.87,181.86,6.6069]
[1730218637715,18.32635285,181.88,181.87,0.1]
[1730218637915,18.32635285,181.92,181.89,0.1]
[1730218638224,18.32635285,181.91,181.9,20.0]
[1730218638524,18.32635285,181.91,181.9,43.776884]
[1730218639414,18.32635285,181.91,181.9,20.0]
[1730218639728,18.32635285,181.91,181.87,20.0]
[1730218639910,18.32635285,181.88,181.87,20.0]
[1730218640719,18.32635285,181.89,181.88,23.776884]
[1730218641030,18.32635285,181.9,181.88,43.876884]
[1730218641203,18.32635285,181.9,181.89,43.776884]
[1730218641405,18.32635285,181.9,181.89,43.876884]
[1730218641630,18.32635285,181.94,181.93,20.0]
[1730218641826,18.32635285,181.94,181.93,43.776884]
[1730218643705,18.32635285,181.94,181.93,23.776884]
[1730218644610,18.32635285,181.94,181.86,6.6069]
[1730218644802,18.32635285,181.88,181.86,6.6069]
[1730218645133,18.32635285,181.87,181.86,6.6069]
[1730218645634,24.06041853,181.98,181.86,6.6069]
[1730218645635,18.32635285,181.91,181.86,25.03325285]
[1730218645841,18.32635285,181.92,181.87,18.32635285]
[1730218646014,18.32635285,181.91,181.86,25.03325285]
[1730218646208,18.32635285,181.91,181.87,23.776884]
[1730218646408,18.32635285,181.9,181.87,23.776884]
[1730218646608,18.32635285,181.9,181.89,43.776884]
[1730218647535,5.73406568,181.98,181.9,20.0]
[1730218647834,18.32635285,181.98,181.93,23.776884]
[1730218648014,18.32635285,181.98,181.95,23.776884]
[1730218648326,18.32635285,181.98,181.9,20.0]
[1730218648535,23.82145285,181.98,181.91,23.776884]
[1730218648909,18.32635285,181.92,181.91,23.776884]
[1730218650415,18.32635285,181.94,181.93,43.776884]
[1730218650617,18.32635285,181.96,181.93,43.776884]
[1730218650827,18.32635285,181.97,181.95,43.776884]
[1730218651235,18.32635285,181.96,181.95,43.776884]
[1730218651416,18.32635285,181.98,181.96,20.0]
[1730218651731,18.32635285,181.98,181.97,23.776884]
[1730218651930,18.32635285,182.0,181.97,23.776884]
[1730218652433,18.32635285,182.0,181.98,20.0]
[1730218652738,18.32635285,182.02,181.99,43.776884]
[1730218653037,24.05252154,182.04,182.02,43.776884]
[1730218653211,18.32635285,182.04,182.03,43.776884]
[1730218653416,16.5560535,182.12,182.04,43.776884]
[1730218653417,18.32635285,182.05,182.04,43.776884]
[1730218655322,18.32635285,182.07,182.05,23.776884]
[1730218655642,18.32635285,182.08,182.05,23.776884]
[1730218655940,0.6089535,182.12,182.07,23.776884]
[1730218656121,6.0998535,182.12,182.09,23.776884]
[1730218656525,18.32635285,182.1,182.09,23.776884]
[1730218657339,36.6527057,182.1,181.99,0.1]
[1730218657543,18.32635285,182.07,182.0,43.776884]
[1730218657737,18.32635285,182.01,181.98,23.3761]
[1730218657960,18.32635285,181.99,181.93,23.3761]
[1730218658124,18.32635285,182.07,181.93,23.3761]
[1730218658453,18.32635285,181.95,181.93,23.4761]
[1730218658926,18.32635285,181.94,181.93,23.2761]
[1730218659129,18.32635285,181.94,181.93,6.6162]
[1730218660729,18.32635285,181.94,181.93,26.6162]
[1730218660919,18.32635285,181.94,181.93,20.0]
[1730218661125,18.32635285,181.96,181.92,0.1]
[1730218661338,18.32635285,181.97,181.92,62.20323685]
[1730218661628,18.32635285,181.96,181.92,62.20323685]
[1730218662036,18.32635285,181.96,181.92,43.776884]
[1730218662242,18.32635285,181.95,181.92,43.776884]
[1730218662549,18.32635285,181.95,181.92,43.876884]
[1730218662733,18.32635285,181.95,181.92,43.776884]
[1730218662940,18.32635285,181.93,181.92,43.776884]
[1730218663245,18.32635285,181.94,181.92,43.776884]
[1730218663433,18.32635285,181.98,181.92,43.776884]
[1730218663434,18.32635285,181.93,181.92,43.776884]
[1730218663619,18.32635285,181.96,181.92,43.776884]
[1730218664043,18.32635285,181.97,181.92,62.10323685]
[1730218664241,18.32635285,181.96,181.92,43.776884]
[1730218664522,18.32635285,181.94,181.92,43.776884]
[1730218664953,18.32635285,181.93,181.92,43.776884]
[1730218665731,18.32635285,181.93,181.9,20.0]
[1730218665953,18.32635285,181.91,181.9,20.0]
[1730218666131,18.32635285,181.91,181.87,0.1]
[1730218666451,18.32635285,181.9,181.87,0.1]
[1730218666642,18.32635285,181.91,181.87,0.2]
[1730218666827,5.68296085,181.97,181.87,0.2]
[1730218666828,18.32635285,181.92,181.87,18.52635285]
[1730218667027,18.32635285,181.91,181.87,1.93340319]
[1730218667737,18.32635285,181.96,181.9,38.32635285]
[1730218667940,18.32635285,181.94,181.9,20.0]
[1730218668349,5.68033235,182.0,181.9,20.0]
[1730218668350,18.32635285,181.95,181.9,38.32635285]
[1730218668851,18.32635285,181.97,181.93,20.0]
[1730218670454,18.32635285,181.99,181.94,38.32635285]
[1730218670666,24.0066852,182.0,181.96,20.0]
[1730218670852,18.32635285,182.01,181.96,38.32635285]
[1730218671234,18.32635285,181.99,181.95,20.0]
[1730218671549,18.32635285,181.99,181.94,18.32635285]
[1730218672037,18.32635285,181.99,181.95,20.0]
[1730218673367,18.32635285,181.98,181.93,18.32635285]
[1730218673537,18.32635285,181.99,181.94,38.32635285]
[1730218674844,18.32635285,181.98,181.93,18.32635285]
[1730218675365,18.32635285,181.98,181.94,20.0]
[1730218676676,22.05794329,182.02,181.93,18.32635285]
[1730218676677,18.32635285,181.97,181.93,20.0]
[1730218677159,18.32635285,181.98,181.93,38.32635285]
[1730218677564,18.32635285,181.97,181.93,20.0]
[1730218677951,18.32635285,181.96,181.93,20.0]
[1730218678278,18.32635285,181.97,181.93,20.0]
[1730218679867,18.32635285,181.96,181.92,20.0]
[1730218680069,5.4942,182.01,181.89,18.32635285]
[1730218680070,18.32635285,181.94,181.89,18.32635285]
[1730218680272,18.32635285,181.93,181.88,18.32635285]
[1730218680476,18.32635285,181.94,181.88,18.32635285]
[1730218680646,18.32635285,181.93,181.88,18.32635285]
[1730218681050,18.32635285,181.94,181.88,18.32635285]
[1730218681279,18.32635285,181.89,181.82,26.1306823]
[1730218681461,18.32635285,181.86,181.81,18.32635285]
[1730218681661,18.32635285,181.89,181.84,18.32635285]
[1730218681968,18.32635285,181.91,181.86,18.32635285]
[1730218682160,15.4187,181.98,181.9,18.32635285]
[1730218682353,18.32635285,181.94,181.9,18.32635285]
[1730218682677,18.32635285,181.95,181.9,18.32635285]
[1730218682878,15.4187,181.98,181.87,8.00432945]
[1730218682879,18.32635285,181.97,181.92,18.32635285]
[1730218683053,18.32635285,181.98,181.94,18.32635285]
[1730218683258,18.32635285,182.0,181.96,18.32635285]
[1730218683475,15.9983,182.03,181.95,20.0]
[1730218683774,18.32635285,182.01,181.95,20.0]
[1730218684078,15.9983,182.03,181.96,20.0]
[1730218684079,18.32635285,182.0,181.96,20.0]
[1730218684453,11.41746099,182.0,181.95,11.41746099]
[1730218684655,11.41746099,182.0,181.96,20.0]
[1730218684985,11.41746099,181.97,181.91,11.41746099]
[1730218685182,11.41746099,181.92,181.84,16.2384]
[1730218685356,11.41746099,181.91,181.86,11.41746099]
[1730218686277,11.41746099,181.9,181.85,11.41746099]
[1730218686483,11.41746099,181.89,181.84,11.41746099]
[1730218687490,15.3837,181.95,181.83,11.41746099]
[1730218687491,11.41746099,181.88,181.83,11.41746099]
[1730218687782,11.41746099,181.87,181.82,11.41746099]
[1730218687989,15.5837,181.95,181.81,11.41746099]
[1730218687990,11.41746099,181.86,181.81,11.41746099]
[1730218688202,11.41746099,181.83,181.8,0.94395953]
[1730218688377,11.41746099,181.81,181.76,11.41746099]
[1730218688559,18.30653779,181.81,181.76,18.30653779]
[1730218688885,86.53,182.01,181.74,6.4521]
[1730218688886,6.4671,181.91,181.78,0.1]
[1730218689060,18.30653779,181.88,181.83,18.30653779]
[1730218689391,18.30653779,181.87,181.82,18.30653779]
[1730218689557,18.30653779,181.88,181.83,18.30653779]
[1730218690779,18.30653779,181.86,181.81,18.30653779]
[1730218692482,18.30653779,181.87,181.82,18.30653779]
[1730218692653,18.30653779,181.9,181.85,18.30653779]
[1730218693056,18.30653779,181.88,181.84,18.30653779]
[1730218693285,18.30653779,181.89,181.84,18.30653779]
[1730218694171,18.30653779,181.9,181.85,18.30653779]
[1730218694688,21.7264,181.95,181.87,18.30653779]
[1730218694867,5.66412056,181.91,181.87,18.30653779]
[1730218695270,18.30653779,181.9,181.85,18.30653779]
[1730218695468,18.30653779,181.89,181.84,18.30653779]
[1730218695673,18.30653779,181.88,181.83,18.30653779]
[1730218696061,5.66312162,181.91,181.87,18.30653779]
[1730218696981,5.66312162,181.91,181.88,18.30653779]
[1730218697159,5.66312162,181.91,181.89,18.30653779]
[1730218697363,18.30653779,181.94,181.89,18.30653779]
[1730218697563,5.66477298,181.92,181.89,18.30653779]
[1730218697761,5.66477298,181.92,181.9,18.30653779]
[1730218697963,5.66477298,181.92,181.91,18.30653779]
[1730218698371,18.30653779,181.96,181.91,18.30653779]
[1730218698570,18.30653779,181.96,181.92,18.30653779]
[1730218698772,5.66452984,181.96,181.93,18.30653779]
[1730218699576,18.30653779,181.99,181.94,18.30653779]
[1730218699789,11.15800664,181.99,181.93,18.30653779]
[1730218699996,18.30653779,181.95,181.91,20.0]
[1730218701092,18.30653779,181.96,181.91,18.30653779]
[1730218702090,18.30653779,181.95,181.9,18.30653779]
[1730218702587,18.30653779,181.97,181.93,18.30653779]
[1730218702798,18.30653779,181.95,181.91,18.30653779]
[1730218703105,18.30653779,181.92,181.87,18.30653779]
[1730218703392,5.66320664,181.99,181.92,6.3159]
[1730218703774,19.3202,182.1,181.93,16.09517876]
[1730218703967,23.96592537,182.04,181.98,18.30653779]
[1730218704170,18.30653779,182.03,181.98,18.30653779]
[1730218704385,15.8676535,182.12,182.02,18.30653779]
[1730218704687,5.6594906,182.08,182.04,18.30653779]
[1730218704998,18.30653779,182.06,181.96,20.0]
[1730218705295,5.66158053,182.07,181.99,18.30653779]
[1730218705489,18.30653779,182.02,181.97,18.30653779]
[1730218705675,18.30653779,182.03,181.97,18.30653779]
[1730218705880,18.30653779,182.03,181.98,18.30653779]
[1730218706388,18.30653779,182.04,181.99,18.30653779]
[1730218706595,18.30653779,182.05,182.0,18.30653779]
[1730218706793,18.30653779,182.04,181.98,18.30653779]
[1730218707195,18.30653779,182.03,181.98,18.30653779]
[1730218707392,18.30653779,182.0,181.95,18.30653779]
[1730218707588,18.30653779,181.99,181.95,20.0]
[1730218707899,18.30653779,181.99,181.94,18.30653779]
[1730218708206,18.30653779,181.98,181.93,18.30653779]
[1730218709096,18.30653779,181.98,181.94,20.0]
[1730218709709,5.66158053,182.07,181.98,20.0]
[1730218709997,18.30653779,182.03,181.98,38.30653779]
[1730218710373,18.30653779,182.01,181.98,20.0]
[1730218710580,29.56061832,182.07,181.96,20.0]
[1730218710890,18.30653779,181.99,181.96,20.0]
[1730218711085,18.30653779,181.99,181.95,20.0]
[1730218711583,18.30653779,182.02,181.97,38.30653779]
[1730218711900,18.30653779,182.01,181.97,20.0]
[1730218712199,18.30653779,182.02,181.97,38.30653779]
[1730218712399,18.30653779,182.01,181.97,20.0]
[1730218712694,18.30653779,181.99,181.95,20.0]
[1730218713281,18.30653779,182.0,181.95,38.30653779]
[1730218713492,18.30653779,181.99,181.95,20.0]
[1730218713810,18.30653779,181.96,181.95,20.0]
[1730218714096,18.30653779,181.97,181.92,38.30653779]
[1730218714512,18.30653779,181.99,181.94,18.30653779]
[1730218714712,16.6241,182.03,181.96,18.30653779]
[1730218714899,18.30653779,182.0,181.95,18.30653779]
[1730218715087,18.30653779,181.98,181.95,20.0]
[1730218715505,18.30653779,181.96,181.93,20.0]
[1730218715814,18.30653779,181.97,181.93,20.0]
[1730218717305,18.30653779,181.94,181.93,26.51179122]
[1730218717500,5.67111474,182.05,181.93,28.71024612]
[1730218717501,18.30653779,181.95,181.93,28.71024612]
[1730218717816,18.30653779,181.97,181.94,27.80432945]
[1730218718001,18.30653779,181.97,181.94,30.00278435]
[1730218718312,18.30653779,181.96,181.94,30.00278435]
[1730218718698,18.30653779,181.95,181.94,22.1984549]
[1730218718889,18.30653779,181.95,181.94,20.0]
[1730218720509,18.30653779,181.95,181.93,20.0]
[1730218720714,18.30653779,181.94,181.93,20.0]
[1730218722502,18.30653779,181.94,181.9,2.19863517]
[1730218722700,18.30653779,181.91,181.88,8.71042639]
[1730218723013,18.30653779,181.89,181.88,8.71042639]
[1730218723516,36.61307558,181.89,181.84,2.19863517]
[1730218723815,18.30653779,181.85,181.84,2.19863517]
[1730218724017,16.5644,181.99,181.84,26.21086724]
[1730218724214,18.30653779,181.88,181.85,18.29381393]
[1730218724594,18.30653779,181.87,181.86,20.0]
[1730218724813,18.30653779,181.88,181.86,30.00296462]
[1730218725095,18.30653779,181.88,181.87,2.19907429]
[1730218725390,18.30653779,181.88,181.86,2.19907429]
[1730218725601,18.30653779,181.88,181.85,22.19907429]
[1730218726498,18.30653779,181.89,181.85,22.19907429]
[1730218726706,18.30653779,181.89,181.85,30.00340374]
[1730218727009,18.30653779,181.89,181.86,7.80432945]
[1730218727213,18.30653779,181.9,181.87,20.0]
[1730218727409,18.30653779,181.91,181.87,20.0]
[1730218727720,18.30653779,181.92,181.89,20.0]
[1730218727909,18.30653779,181.9,181.89,20.0]
[1730218728718,18.30653779,181.9,181.87,2.19877711]
[1730218728719,36.61307558,181.9,181.87,2.19877711]
[1730218728897,18.30653779,181.98,181.84,0.34654193]
[1730218728898,18.30653779,181.88,181.84,0.34654193]
[1730218729094,18.30653779,181.85,181.84,8.71056833]
[1730218729402,18.30653779,181.85,181.84,6.51179122]
[1730218730116,18.30653779,181.85,181.82,8.65487711]
[1730218730315,18.30653779,181.83,181.82,8.65487711]
[1730218730924,18.30653779,181.84,181.82,16.45920656]
[1730218731133,18.30653779,181.84,181.83,7.80432945]
[1730218731304,18.30653779,181.84,181.83,27.80432945]
[1730218731629,18.30653779,181.84,181.83,30.00310656]
[1730218732519,18.30653779,181.86,181.84,20.0]
[1730218732819,5.66981445,181.96,181.84,20.0]
[1730218732820,18.30653779,181.87,181.84,22.19877711]
[1730218733031,18.30653779,181.85,181.84,27.80432945]
[1730218733597,18.30653779,181.85,181.83,22.19877711]
[1730218733828,18.30653779,181.85,181.83,20.0]
[1730218734529,18.30653779,181.85,181.83,22.19877711]
[1730218734732,18.30653779,181.84,181.83,22.19877711]
[1730218735227,18.30653779,181.84,181.83,27.80432945]
[1730218735411,18.30653779,181.84,181.83,22.19877711]
[1730218735611,18.30653779,181.84,181.82,2.19877711]
[1730218735811,18.30653779,181.83,181.8,2.19877711]
[1730218736027,18.30653779,181.81,181.78,0.34654193]
[1730218736227,18.30653779,181.89,181.79,2.19877711]
[1730218736704,18.30653779,181.8,181.79,2.19877711]
[1730218736910,18.30653779,181.8,181.78,2.19877711]
[1730218737528,18.30653779,181.79,181.77,4.07492741]
[1730218737720,18.30653779,181.8,181.78,2.19877711]
[1730218737922,18.30653779,181.82,181.79,2.19877711]
[1730218738224,18.30653779,181.83,181.8,2.19877711]
[1730218738432,18.30653779,181.84,181.81,2.19877711]
[1730218738620,18.30653779,181.85,181.81,2.19877711]
[1730218738822,18.30653779,181.86,181.82,9.48249209]
[1730218739012,18.30653779,181.86,181.83,20.0]
[1730218739624,18.30653779,181.85,181.83,20.0]
[1730218739832,18.30653779,181.85,181.82,2.19877711]
[1730218740224,18.30653779,181.85,181.81,22.19877711]
[1730218740428,5.6795979,181.94,181.81,22.19877711]
[1730218740429,18.30653779,181.87,181.83,20.0]
[1730218740613,18.30653779,181.87,181.83,22.19877711]
[1730218741433,18.30653779,181.88,181.83,40.5053149]
[1730218741624,18.30653779,181.89,181.85,20.0]
[1730218741813,18.30653779,181.89,181.85,22.19877711]
[1730218742017,18.30653779,181.86,181.85,22.19920222]
[1730218742333,18.30653779,181.86,181.84,2.19920222]
[1730218742512,18.30653779,181.9,181.86,20.0]
[1730218742710,18.30653779,181.9,181.86,22.19920222]
[1730218743242,18.30653779,181.91,181.87,20.0]
[1730218743431,18.30653779,181.9,181.87,2.19920222]
[1730218743735,16.5249,181.87,181.84,7.28371498]
[1730218743910,18.30653779,181.85,181.77,0.3438431]
[1730218744112,18.30653779,181.78,181.75,6.6323431]
[1730218744331,18.30653779,181.8,181.74,0.3438431]
[1730218744332,18.30653779,181.76,181.74,0.3438431]
[1730218744546,18.30653779,181.75,181.73,0.3438431]
[1730218744745,18.30653779,181.74,181.71,2.17124531]
[1730218744923,18.30653779,181.72,181.71,1.82740221]
[1730218745118,18.30653779,181.72,181.69,0.3438431]
[1730218745340,18.30653779,181.7,181.69,0.3438431]
[1730218745547,18.30653779,181.7,181.67,15.7945]
[1730218745754,18.30653779,181.68,181.65,6.6323431]
[1730218745929,18.30653779,181.67,181.65,6.6323431]
[1730218746135,18.30653779,181.72,181.66,18.50653779]
[1730218746330,18.30653779,181.7,181.66,6.89869142]
[1730218746535,18.30653779,181.69,181.65,6.2885]
[1730218746736,18.30653779,181.68,181.65,6.2885]
[1730218746942,16.5249,181.78,181.65,6.2885]
[1730218746943,18.30653779,181.7,181.65,24.59503779]
[1730218747725,18.30653779,181.69,181.66,20.0]
[1730218748346,18.30653779,181.72,181.66,38.30653779]
[1730218748931,18.30653779,181.71,181.66,38.30653779]
[1730218749348,18.30653779,181.69,181.66,20.0]
[1730218749556,18.30653779,181.7,181.66,20.0]
[1730218750135,18.30653779,181.71,181.66,38.30653779]
[1730218750348,18.30653779,181.75,181.7,20.0]